Cogmind - Beta 12 @@@ ROGUE MODE // 2023.11.30 @ 09:52:46 Player: kaj Result: Destroyed by as-42702 with Assembled Rifle Performance ------------- Evolutions (0) 0 Regions Visited (4) 800 Robots Destroyed (7) 35 Value Destroyed (179) 179 Prototype IDs (23) 460 Alien Tech Used (0) 0 Bonus (300) 300 TOTAL SCORE: 1774 Bonus ------- Aligned with FarCom 300 Cogmind --------- Core Integrity 0/250 Matter 289/300 Energy 100/100 System Corruption 12% Temperature Cool (0) Movement Rolling (115) Ox1 Location -9/Mines Parts ------- > --- POWER (1) -------- (None) > --- PROPULSION (2) --- Compact Wheel > --- UTILITY (2) ------ Large Storage Unit > --- WEAPON (2) ------- Light Cannon > --- INVENTORY (15) --- Aluminum Leg Large Storage Unit Lightpack 2.0 Large Matter Pod (150) Large Matter Pod (150) Large Matter Pod (55) High-capacity Matter Pod (200) Transport Network Coupler EM Pulse Gun Datajack Peak State ------------ > --- POWER ------------ Light Ion Engine > --- PROPULSION ------- Aluminum Leg Aluminum Leg > --- UTILITY ---------- Heat Sink Large Storage Unit > --- WEAPON ----------- Light Assault Rifle Light Assault Rifle > --- INVENTORY -------- Aluminum Leg Compact Wheel Large Storage Unit Lightpack 2.0 Large Matter Pod Large Matter Pod High-capacity Matter Pod Transport Network Coupler EM Pulse Gun Light Cannon Datajack [Rating: 11] Favorites ----------- Power Light Ion Engine Engine Light Ion Engine Propulsion Aluminum Leg Leg Aluminum Leg Wheel Compact Wheel Utility Large Storage Unit Device Heat Sink Storage Large Storage Unit Weapon Light Assault Rifle Energy Gun Medium Laser Ballistic Gun Light Assault Rifle Ballistic Cannon Light Cannon Build | -11 -10 -10 -10 -9 ------- Run | Jun Mat Min Exi Min Slots Evolved . | . . . . . Power . | . . . . . Propulsion . | . . . . . Utility . | . . . . . Weapon . | . . . . . Parts Attached 14 | . 6 6 1 1 Power 1 | . . 1 . . Engine 1 | . . 1 . . Core . | . . . . . Reactor . | . . . . . Propulsion 4 | . 1 2 1 . Treads . | . . . . . Leg 3 | . 1 2 . . Wheel 1 | . . . 1 . Hover . | . . . . . Flight . | . . . . . Utility 3 | . 2 1 . . Device 2 | . 1 1 . . Storage 1 | . 1 . . . Processor . | . . . . . Hackware . | . . . . . Protection . | . . . . . Artifact . | . . . . . Weapon 6 | . 3 2 . 1 Energy Gun 1 | . 1 . . . Energy Cannon . | . . . . . Ballistic Gun 4 | . 2 2 . . Ballistic Cannon 1 | . . . . 1 Launcher . | . . . . . Special Weapon . | . . . . . Impact Weapon . | . . . . . Slashing Weapon . | . . . . . Piercing Weapon . | . . . . . Special Melee Weapon . | . . . . . Unidentified Prototypes . | . . . . . Corrupted Parts 3 | . 3 . . . System Corruption 11 | . 11 . . . Parts Lost 12 | . . 6 4 2 Power 2 | . . 1 . 1 Propulsion 4 | . . 2 2 . Utility 2 | . . 1 1 . Weapon 4 | . . 2 1 1 Highest Loss Streak 6 | . . 6 4 2 To Critical Strikes 3 | . . . 3 . Average Slot Usage (%) 92 | . 92 88 98 63 Engine 13 | . 14 6 14 12 Leg 25 | . 28 25 26 . Wheel 1 | . . . . 14 Device 9 | . 6 12 13 . Storage 14 | . 14 14 14 14 Energy Gun 11 | . 27 1 . . Ballistic Gun 14 | . . 26 27 12 Naked Turns . | . . . . . Heaviest Build 27 | 12 27 27 26 27 Greatest Support 20 | 20 20 20 20 16 Greatest Overweight (x) 2 | . 2 1 2 1 Average Overweight (x) . | . . 1 1 1 Largest Inventory Capacity 15 | . 15 15 15 15 Average Capacity 14 | . 14 15 15 15 Most Carried 15 | . 15 15 14 13 Average Carried 11 | . 11 11 10 12 Final Capacity 15 | 8 15 15 15 15 Final Carried 15 | 6 15 9 13 12 Class Distribution -------------------- 56% | Mutant 43% | Scavenger-Mutant Dominant Class ---------------- Mutant | -10/Materials Scavenger-Mutant | -10/Mines Scavenger-Mutant | -10/Exiles Mutant | -9/Mines Resources | -11 -10 -10 -10 -9 ----------- Run | Jun Mat Min Exi Min Matter Collected 911 | 200 106 93 500 12 Remotely . | . . . . . Salvage Created 216 | . 113 93 . 10 Parts 14 | . 11 3 . . Haulers Intercepted . | . . . . . Recyclers Shooed 1 | . 1 . . . Parts Field Recycled . | . . . . . Retrieved Matter . | . . . . . Parts Self-Destructed . | . . . . . Prevented . | . . . . . Kills | -11 -10 -10 -10 -9 ------- Run | Jun Mat Min Exi Min Combat Hostiles Destroyed 8 | . 5 2 . 1 Guns 7 | . 5 2 . . Cannons 1 | . . . . 1 Classes Destroyed 3 | . 2 . . 1 Swarmer 3 | . 3 . . . Grunt 4 | . 2 2 . . Assembled 1 | . . . . 1 Best Kill Streak 3 | . 3 1 . 1 Combat Bots Only 3 | . 3 1 . 1 Max Kills in Single Turn 1 | . 1 1 . 1 Gunslinging . | . . . . . Exploded . | . . . . . Melee . | . . . . . Uniques/NPCs Destroyed . | . . . . . Combat | -11 -10 -10 -10 -9 -------- Run | Jun Mat Min Exi Min Damage Taken 1345 | . 401 390 399 155 Core 255 | . 62 73 96 24 Absorbed by Shields . | . . . . . Core Remaining (%) 100 | 100 . . . . Volleys Fired 36 | . 15 17 2 2 Largest 2 | . 2 2 2 2 Hottest 90 | . 90 40 40 55 Shots Fired 74 | . 30 35 5 4 Gun 72 | . 30 35 5 2 Cannon 2 | . . . . 2 Launcher . | . . . . . Special . | . . . . . Kinetic 44 | . . 35 5 4 Thermal 30 | . 30 . . . Explosive . | . . . . . Electromagnetic . | . . . . . Robot Hit Streak 6 | . 6 6 2 2 Robot Miss Streak 3 | . 3 3 2 2 Penetration Max . | . . . . . Secondary Targets 1 | . 1 . . . Max Gunslinging Chain 1 | . 1 . . . Shots Hit Robots 45 | . 17 23 3 2 Core Hits 18 | . 9 6 1 2 Critical Kills . | . . . . . Critical Parts Destroyed . | . . . . . Critical Strikes 1 | . 1 . . . Burn 1 | . 1 . . . Melee Attacks . | . . . . . Impact . | . . . . . Slashing . | . . . . . Piercing . | . . . . . Sneak Attacks . | . . . . . Combat Hostiles . | . . . . . Follow-up Attacks . | . . . . . Damage Inflicted 426 | . 197 180 24 25 Guns 408 | . 197 180 24 7 Cannons 18 | . . . . 18 Explosions . | . . . . . Melee . | . . . . . Ramming . | . . . . . Kinetic 229 | . . 180 24 25 Thermal 197 | . 197 . . . Explosive . | . . . . . Electromagnetic . | . . . . . Impact . | . . . . . Slashing . | . . . . . Piercing . | . . . . . Highest Corruption 12 | . 12 12 12 12 Average Corruption 9 | . 2 12 12 12 Corruption Purged . | . . . . . Corruption Blocked . | . . . . . Effects 32 | . 1 6 21 4 Message Errors 7 | . 1 1 5 . Matter Fused 5 | . . . 4 1 Heat Flow Errors 4 | . . 1 3 . Energy Discharges 3 | . . . 3 . Data Loss (minor) 8 | . . 2 4 2 Data Loss (major) 2 | . . . 1 1 Misfires 2 | . . 1 1 . Alerts 1 | . . 1 . . Overload Shots . | . . . . . Overflow Damage . | . . . . . Projectiles . | . . . . . Explosions . | . . . . . Melee . | . . . . . Knockbacks . | . . . . . Impact . | . . . . . Kinetic . | . . . . . Secondary . | . . . . . Self-Inflicted Damage . | . . . . . Shots . | . . . . . Rammed . | . . . . . Targets Rammed . | . . . . . Kicked . | . . . . . Crushed . | . . . . . Highest Temperature 226 | . 180 82 226 14 Average Temperature 63 | . 61 17 112 10 Received Heat Transfer 327 | . 105 222 . . Siege Activations . | . . . . . Robots Corrupted . | . . . . . Combat Hostiles . | . . . . . Parts Fried . | . . . . . Impact Corruptions . | . . . . . Robots Melted . | . . . . . Combat Hostiles . | . . . . . Parts Melted . | . . . . . Heat Transferred 595 | . 595 . . . Parts Sabotaged . | . . . . . Parts Stolen . | . . . . . Parts Stripped . | . . . . . Power Chain Reactions . | . . . . . Missiles Intercepted . | . . . . . Alert | -11 -10 -10 -10 -9 ------- Run | Jun Mat Min Exi Min Peak Influence 150 | . 150 20 . 15 Initial 5 | . . 5 . . Average 49 | . 66 12 . . Maximum Alert Level . | . . . . . Low Security (%) 100 | . 100 100 . 100 Level 1 . | . . . . . Level 2 . | . . . . . Level 3 . | . . . . . Level 4 . | . . . . . Level 5 . | . . . . . High Security . | . . . . . Max Security . | . . . . . Squads Dispatched 1 | . 1 . . . Investigation . | . . . . . Extermination . | . . . . . Reinforcement 1 | . 1 . . . Assault . | . . . . . Garrison . | . . . . . Intercept . | . . . . . Searches Triggered . | . . . . . Construction Impeded . | . . . . . Haulers Reinforced . | . . . . . Active Scanning Responses . | . . . . . Cargo Convoy Interrupts . | . . . . . Stealth | -11 -10 -10 -10 -9 --------- Run | Jun Mat Min Exi Min Distress Signals 1 | . 1 . . . Communications Jammed . | . . . . . Distress Signals . | . . . . . Times Spotted 20 | . 12 2 1 5 Peak Tracking Total 4 | . 4 2 2 4 Tactical Retreats . | . . . . . Traps | -11 -10 -10 -10 -9 ------- Run | Jun Mat Min Exi Min Traps Triggered 2 | . 2 . . . Indirectly . | . . . . . Trap Hack Attempts . | . . . . . Triggered . | . . . . . Disarmed . | . . . . . Reprogrammed . | . . . . . Reused . | . . . . . Traps Extracted . | . . . . . Installed . | . . . . . Triggered . | . . . . . Machines | -11 -10 -10 -10 -9 ---------- Run | Jun Mat Min Exi Min Machines Disabled . | . . . . . Max in Single Turn . | . . . . . Machines Repaired . | . . . . . Machines Sabotaged . | . . . . . Overloaded Fab Kills . | . . . . . Hacking | -11 -10 -10 -10 -9 --------- Run | Jun Mat Min Exi Min Machines Accessed 1 | . . . 1 . Terminals . | . . . . . Fabricators . | . . . . . Repair Stations . | . . . . . Recycling Units . | . . . . . Scanalyzers . | . . . . . Garrison Access . | . . . . . Total Hacks 1 | . . . 1 . Successful 1 | . . . 1 . Failed . | . . . . . Catastrophic . | . . . . . Database Lockouts . | . . . . . Manual 1 | . . . 1 . Terminals . | . . . . . Fabricators . | . . . . . Repair Stations . | . . . . . Recycling Units . | . . . . . Scanalyzers . | . . . . . Garrison Access . | . . . . . Terminal Hacks 1 | . . . 1 . EX-Prototype ID Bank 1 | . . . 1 . Fabricator Hacks . | . . . . . Repair Station Hacks . | . . . . . Recycling Unit Hacks . | . . . . . Scanalyzer . | . . . . . Garrison Access Hacks . | . . . . . Unauthorized Hacks . | . . . . . Terminals . | . . . . . Fabricators . | . . . . . Repair Stations . | . . . . . Recycling Units . | . . . . . Scanalyzers . | . . . . . Garrison Access . | . . . . . Data Cores Recovered . | . . . . . Used . | . . . . . Hacking Detections . | . . . . . Full Trace Events . | . . . . . Feedback Events . | . . . . . Feedback Blocked . | . . . . . Robot Schematics Acquired . | . . . . . Robots Built . | . . . . . Authchips . | . . . . . Time . | . . . . . Total Robot Build Rating . | . . . . . Part Schematics Acquired . | . . . . . Parts Built . | . . . . . Authchips . | . . . . . Time . | . . . . . Total Part Build Rating . | . . . . . Parts Repaired . | . . . . . Time . | . . . . . Parts Recycled . | . . . . . Recycled Matter . | . . . . . Retrieved Matter . | . . . . . Retrieved Components . | . . . . . Parts Scanalyzed . | . . . . . Part Schematics Acquired . | . . . . . Parts Damaged . | . . . . . Bothacking | -11 -10 -10 -10 -9 ------------ Run | Jun Mat Min Exi Min Used RIF Installer . | . . . . . Robots Hacked . | . . . . . Non-combat . | . . . . . Combat . | . . . . . Robot Hacks Applied . | . . . . . Relay Couplers Released . | . . . . . Fabnet Peak Effective % . | . . . . . Robots Rewired . | . . . . . Allies Hacked . | . . . . . Hacks Repelled . | . . . . . Allies | -11 -10 -10 -10 -9 -------- Run | Jun Mat Min Exi Min Total Allies . | . . . . . Largest Group . | . . . . . Highest-Rated Group . | . . . . . Highest-Rated Ally . | . . . . . Total Orders . | . . . . . Ally Attacks . | . . . . . Total Damage . | . . . . . Kills . | . . . . . Allies Corrupted . | . . . . . Allies Melted . | . . . . . Intel | -11 -10 -10 -10 -9 ------- Run | Jun Mat Min Exi Min Robot Analysis Total . | . . . . . Derelict Logs Recovered . | . . . . . Drone Launches . | . . . . . Drone Recoveries . | . . . . . Exploration | -11 -10 -10 -10 -9 ------------- Run | Jun Mat Min Exi Min Turns Passed 1142 | . 492 132 439 79 Spaces Moved 547 | 1 215 38 230 63 Core . | . . . . . Treads . | . . . . . Legs 473 | 1 215 38 219 . Wheels 74 | . . . 11 63 Hover . | . . . . . Flight . | . . . . . Fastest Speed 115 | 120 120 190 115 115 Average Speed 179 | 120 187 190 187 115 Slowest Speed 260 | 120 260 190 260 115 Overloaded Moves . | . . . . . Propulsion Burnouts . | . . . . . Robots Hopped . | . . . . . Cave-ins Triggered . | . . . . . Exploration Rate (%) 26 | 2 45 13 60 11 Regions Visited 4 Branch Regions 3 Pre-discovered Areas . | . . . . . Known Exits Taken . | . . . . . Unknown Exits Taken 4 | 1 1 1 1 . Scrap Searched . | . . . . . Spaces Dug . | . . . . . Terrain Destroyed . | . . . . . Melee . | . . . . . Projectile . | . . . . . AOE . | . . . . . Terrain Rammed . | . . . . . Walls Destroyed . | . . . . . Machines Disabled . | . . . . . Actions | -11 -10 -10 -10 -9 --------- Run | Jun Mat Min Exi Min Total 646 | . 274 71 235 66 Wait 31 | . 20 11 . . Move 543 | . 214 37 229 63 Hop . | . . . . . Pick Up 16 | . 13 . 3 . Fast Attach 2 | . 2 . . . Attach 9 | . 1 6 1 1 Detach . | . . . . . Swap 3 | . 3 . . . Drop 6 | . 6 . . . Fire 36 | . 15 17 2 2 Melee . | . . . . . Ram . | . . . . . Kick . | . . . . . Crush . | . . . . . Escape Stasis . | . . . . . Rewire . | . . . . . Trap . | . . . . . Miscellaneous . | . . . . . Route ------- -11/Junkyard -10/Materials (discovered 2 exits: [*Min x2]) -10/Mines -10/Exiles -9/Mines History --------- Turn | Location | Event 1 | -11/Junkyard | Discovered new exit (range 0) 1 | -11/Junkyard | Entered Materials 1 | -10/Materials | Discovered new exit (range 15) 308 | -10/Materials | Build established: Mutant 413 | -10/Materials | Discovered new exit (range 9) 479 | -10/Materials | System corruption reached 10% 493 | -10/Materials | Entered Mines 560 | -10/Mines | Core integrity fell below 50% 594 | -10/Mines | Lost 6 parts (1p2n1u2w) 617 | -10/Mines | Deemed a non-threat by the Exiles lab entrance 617 | -10/Mines | Discovered new exit (range 5) 625 | -10/Mines | Entered Exiles 671 | -10/Exiles | Met 8R-AWN 705 | -10/Exiles | Met EX-HEX 764 | -10/Exiles | Met EX-BIN 787 | -10/Exiles | Aligned with FarCom system 789 | -10/Exiles | Given EX-Vault access code 833 | -10/Exiles | Opened EX-Vault 838 | -10/Exiles | Build established: Scavenger-Mutant 846 | -10/Exiles | Found Lightpack 2.0 885 | -10/Exiles | Warned to stay clear of 0b10 Research branches 911 | -10/Exiles | Exiles lab attacked by MAIN.C 996 | -10/Exiles | Attacked by the Exiles 1043 | -10/Exiles | Core integrity fell below 20% 1049 | -10/Exiles | Discovered new exit (range 14) 1064 | -10/Exiles | Left Exiles lab with Lightpack 2.0 1064 | -10/Exiles | Entered Mines 1072 | -9/Mines | Assembled infested the area 1083 | -9/Mines | Lost 4 parts (2n1u1w) 1143 | -9/Mines | Destroyed by as-42702 with Assembled Rifle Last Messages --------------- 01055_ HV Slug penetrates Machine. 01055_ Machine disabled. 01055_ HV Slug penetrates Wall. 01055_ Penetrated by HV Slug. 01055_ HV Slug penetrates Wall. 01059_ #CUNPK7FPBGXI3,F#CQDIX3O37>TOHW LOCATION=UNKNOWN GOAL=ESCAPE 01072_ ALERT: Infestation in the mines, dispatching Demolisher response squad. 01075_ System corrupted: Component data lost. 01088_ as-26143 destroyed. 01091_ System corrupted: Component data lost. 01115_ System corrupted: Substantial component data lost. 01130_ System corrupted: Matter fused (-8). 01130_ Acquired 10 matter. 01131_ Acquired 2 matter. 01132_ The unstable cave ceiling collapses. 01133_ Lgt. Assault Rifle destroyed. 01137_ Lgt. Ion Engine destroyed. Map ----- +----------------------------------------------------+ | ????????????????????????????????? | | ????????????????????????????????? | | ????????????????????????????????? | | ????????????????????????????????? | | ????????????????????????????????? | | ????????????????????????????????? | | ????????????????????????????? #?? | | ????????????????#####???????=!??? | | ?????????????#### #????###%???? | | ????????????## #????**%$???? | | ???????????## ## #????!%%????? | | ?????????### ### #????==#????? | | ????????## #?# #????=%#????? | | ????????# #?# #####=!##???? | | ????????# ##?# ## !a!#???? | | ????????## ###??# ## % #???? | | ?????????####????# ## = ##??? | | ?????????????????# ## ##?? | | ?????????????????# ## a # #?? | | ?????????????????# # # a #??? | | ?????????????????# # #??? | | ?????????????????# a #??? | | ?????????????????# #??? | | ?????????????????####### #??? | | ???????????????????????# #??? | | ???????????????????????# @ #??? | | ???????????????????????# ##??? | | ???????????????????????# #???? | | ??????????????????????? #???? | | ?????????????????????? ???? | | ????????????????????? <#??? | | ????????????????????? # ##??? | | ????????????????????# ## ###???? | | ????????????????????# ?# #?????? | | ????????????????????# ?? ??????? | | ???????????????????? ???#??????? | | ???????????????????? ??????????? | | ???????????????????###??????????? | | ????????????????????????????????? | | ????????????????????????????????? | | ????????????????????????????????? | | ????????????????????????????????? | | ????????????????????????????????? | | ????????????????????????????????? | | ????????????????????????????????? | | ????????????????????????????????? | | ????????????????????????????????? | | ????????????????????????????????? | | ????????????????????????????????? | | ????????????????????????????????? | +----------------------------------------------------+ Best States ------------- Heat Dissipation 35 Energy Generation 10 Energy Capacity 125 Matter Stores 300 Matter Capacity 300 Sight Range 16 Terrain Scan Density 10 Evasion (%) 50 Item Schematics ----------------- None Robot Schematics ------------------ None Fabricated ------------ Nothing Alien Tech Used ----------------- None Achievements -------------- None Challenges ------------ None Game ------ Seed PrecisionExplosiveSteel Manual? 0 Play Time 00:09:13 Cumulative 152.5 hours Start 2023.11.30 @ 09:36:40 End 2023.11.30 @ 09:52:46 Sessions 1 Manual Loads 0 Difficulty Rogue Special Mode None Game No. 232 Rogue 232 Adventurer 0 Explorer 0 Win Type - Total 0 Types 0/0/0/0/0/0/0/0/0 Lore% 49 Gallery% 59 Achievement% 43 Wizard Run 0 Options --------- ASCII 0 Keyboard 0 Movement Mouse Keybinds 1 Fullscreen 2 Font 18/X11 Map View 76x50 Tactical HUD 1 Map Filters SATURATION(75) Filters LOW_CONTRAST(23,23,23) Steam 1 RUN: 470dbe62-b80d-4bac-8e9f-87169e9f184e